[Event "2026 European Womens Championship"]
[Site "Batumi, GE"]
[Date "2026.06.02"]
[Round "8"]
[White "Mammadova, Gulnar"]
[Black "Khachatryan, Anna"]
[Result "0-1"]
[Board "28"]
[TimeControl "5400+30"]
[WhiteFideId "13403508"]
[BlackFideId "13310780"]
[WhiteElo "2325"]
[BlackElo "2154"]
[WhiteTitle "IM"]
[BlackTitle "WFM"]
[WhiteClock "0:21:53"]
[BlackClock "0:20:30"]
[Variant "Standard"]

1. e4 {[%clk 1:30:55]}  c5 {[%clk 1:30:46]} 2. Nf3 {[%clk 1:31:15]}  Nc6 {[%clk 1:31:12]} 3. Bb5 {[%clk 1:31:31]}  g6 {[%clk 1:31:11]}
4. Bxc6 {[%clk 1:31:44]}  bxc6 {[%clk 1:31:38]} 5. O-O {[%clk 1:31:56]}  Bg7 {[%clk 1:31:47]} 6. Re1 {[%clk 1:32:02]}  Nh6 {[%clk 1:31:12]}
7. c3 {[%clk 1:31:36]}  O-O {[%clk 1:30:46]} 8. d4 {[%clk 1:31:51]}  cxd4 {[%clk 1:31:03]} 9. cxd4 {[%clk 1:32:17]}  d5 {[%clk 1:31:28]}
10. e5 {[%clk 1:32:39]}  f6 {[%clk 1:31:28]} 11. Qc2 {[%clk 1:32:52]}  Bg4 {[%clk 1:12:50]} 12. Nbd2 {[%clk 1:32:08]}  Qb6 {[%clk 1:06:06]}
13. h3 {[%clk 1:30:52]}  Bf5 {[%clk 1:06:23]} 14. Qc3 {[%clk 1:28:45]}  Nf7 {[%clk 1:02:47]} 15. exf6 {[%clk 1:17:55]}  exf6 {[%clk 1:02:03]}
16. g4 {[%clk 1:12:51]}  Bd7 {[%clk 1:00:02]} 17. Nb3 {[%clk 1:09:42]}  Rae8 {[%clk 0:59:18]} 18. Bf4 {[%clk 1:04:52]}  g5 {[%clk 0:53:10]}
19. Bg3 {[%clk 1:03:18]}  h5 {[%clk 0:50:22]} 20. Nc5 {[%clk 1:00:29]}  Bc8 {[%clk 0:49:40]} 21. gxh5 {[%clk 0:57:55]}  Bxh3 {[%clk 0:48:55]}
22. Nd2 {[%clk 0:50:22]}  Bg4 {[%clk 0:44:43]} 23. f3 {[%clk 0:48:18]}  Bc8 {[%clk 0:43:57]} 24. Ndb3 {[%clk 0:46:22]}  f5 {[%clk 0:39:00]}
25. Be5 {[%clk 0:38:42]}  Nxe5 {[%clk 0:35:47]} 26. dxe5 {[%clk 0:39:06]}  Qc7 {[%clk 0:26:19]} 27. f4 {[%clk 0:35:58]}  gxf4 {[%clk 0:25:57]}
28. Nd3 {[%clk 0:34:34]}  Qe7 {[%clk 0:21:26]} 29. Qd2 {[%clk 0:22:07]}  Bh6 {[%clk 0:18:40]} 30. Nd4 {[%clk 0:17:45]}  Kh7 {[%clk 0:16:33]}
31. Nf3 {[%clk 0:17:20]}  Rg8+ {[%clk 0:16:15]} 32. Kf2 {[%clk 0:17:29]}  Rg4 {[%clk 0:13:17]} 33. Qb4 {[%clk 0:15:28]}  Qg7 {[%clk 0:09:30]}
34. Rg1 {[%clk 0:11:48]}  Rg8 {[%clk 0:09:48]} 35. Rxg4 {[%clk 0:11:44]}  fxg4 {[%clk 0:10:02]} 36. Rg1 {[%clk 0:10:17]}  Qf7 {[%clk 0:05:17]}
37. e6 {[%clk 0:09:01]}  Qxh5 {[%clk 0:05:28]} 38. Nxf4 {[%clk 0:07:57]}  Qf5 {[%clk 0:03:52]} 39. Rh1 {[%clk 0:07:39]}  c5 {[%clk 0:02:11]}
40. Qd2 {[%clk 0:05:29]}  gxf3 {[%clk 0:01:48]} 41. e7 {[%clk 0:05:41]}  Qg5 {[%clk 0:20:05]} 42. Qd3+ {[%clk 0:33:35]}  Bf5 {[%clk 0:20:14]}
43. Qxd5 {[%clk 0:21:26]}  Qg3+ {[%clk 0:20:12]} 44. Kf1 {[%clk 0:21:53]}  Bh3+ {[%clk 0:20:30]} 0-1

[Event "2026 European Womens Championship"]
[Site "Batumi, GE"]
[Date "2026.06.02"]
[Round "8"]
[White "Hryzlova, Sofiia"]
[Black "Sliwicka, Alicja"]
[Result "1/2-1/2"]
[Board "29"]
[TimeControl "5400+30"]
[WhiteFideId "14174669"]
[BlackFideId "1150677"]
[WhiteElo "2226"]
[BlackElo "2315"]
[WhiteTitle "WIM"]
[BlackTitle "WGM"]
[WhiteClock "0:28:59"]
[BlackClock "0:09:53"]
[Variant "Standard"]

1. d4 {[%clk 1:30:57]}  Nf6 {[%clk 1:30:53]} 2. c4 {[%clk 1:31:08]}  c5 {[%clk 1:31:17]} 3. d5 {[%clk 1:31:33]}  b5 {[%clk 1:31:41]}
4. cxb5 {[%clk 1:31:57]}  a6 {[%clk 1:32:07]} 5. bxa6 {[%clk 1:32:21]}  e6 {[%clk 1:32:28]} 6. Nc3 {[%clk 1:32:06]}  exd5 {[%clk 1:32:43]}
7. Nxd5 {[%clk 1:31:40]}  Nxa6 {[%clk 1:32:52]} 8. Bg5 {[%clk 1:30:43]}  Be7 {[%clk 1:32:36]} 9. Nxe7 {[%clk 1:28:05]}  Qxe7 {[%clk 1:33:00]}
10. e3 {[%clk 1:28:08]}  Qe5 {[%clk 1:29:15]} 11. Bxf6 {[%clk 1:23:47]}  Qxf6 {[%clk 1:29:32]} 12. Bxa6 {[%clk 1:15:29]}  Rxa6 {[%clk 1:26:12]}
13. Ne2 {[%clk 1:11:57]}  Qxb2 {[%clk 1:21:55]} 14. O-O {[%clk 1:03:27]}  O-O {[%clk 1:18:31]} 15. Nf4 {[%clk 0:51:59]}  d6 {[%clk 1:09:42]}
16. a4 {[%clk 0:42:24]}  Be6 {[%clk 1:06:10]} 17. Qd3 {[%clk 0:41:11]}  Qb7 {[%clk 1:00:47]} 18. Rfb1 {[%clk 0:38:05]}  Qc6 {[%clk 1:00:15]}
19. a5 {[%clk 0:36:46]}  Rfa8 {[%clk 0:55:16]} 20. h3 {[%clk 0:36:24]}  d5 {[%clk 0:44:29]} 21. Qc3 {[%clk 0:34:31]}  Rc8 {[%clk 0:35:55]}
22. Rd1 {[%clk 0:30:47]}  f6 {[%clk 0:32:21]} 23. Qd2 {[%clk 0:23:02]}  Rca8 {[%clk 0:30:18]} 24. Nxe6 {[%clk 0:15:30]}  Qxe6 {[%clk 0:30:40]}
25. Qxd5 {[%clk 0:15:54]}  Qxd5 {[%clk 0:31:00]} 26. Rxd5 {[%clk 0:16:19]}  Rxa5 {[%clk 0:31:15]} 27. Rc1 {[%clk 0:16:37]}  Rc8 {[%clk 0:31:25]}
28. Rc4 {[%clk 0:16:21]}  Rc7 {[%clk 0:31:41]} 29. g4 {[%clk 0:11:52]}  Kf7 {[%clk 0:31:00]} 30. Kg2 {[%clk 0:11:04]}  Ke6 {[%clk 0:30:54]}
31. e4 {[%clk 0:10:47]}  Rb5 {[%clk 0:28:59]} 32. f3 {[%clk 0:09:53]} 1/2-1/2

[Event "2026 European Womens Championship"]
[Site "Batumi, GE"]
[Date "2026.06.02"]
[Round "8"]
[White "Rudzinska, Michalina"]
[Black "Matnadze Bujiashvili, Ann"]
[Result "0-1"]
[Board "30"]
[TimeControl "5400+30"]
[WhiteFideId "1172883"]
[BlackFideId "13601377"]
[WhiteElo "2200"]
[BlackElo "2310"]
[WhiteTitle "WGM"]
[BlackTitle "IM"]
[WhiteClock "0:00:33"]
[BlackClock "0:05:21"]
[Variant "Standard"]

1. e4 {[%clk 1:30:52]}  c5 {[%clk 1:30:57]} 2. Nf3 {[%clk 1:31:14]}  Nc6 {[%clk 1:31:21]} 3. d4 {[%clk 1:31:27]}  cxd4 {[%clk 1:31:49]}
4. Nxd4 {[%clk 1:31:50]}  Nf6 {[%clk 1:32:10]} 5. Nc3 {[%clk 1:32:11]}  d6 {[%clk 1:32:38]} 6. Bg5 {[%clk 1:32:01]}  e6 {[%clk 1:32:53]}
7. Qd2 {[%clk 1:32:09]}  a6 {[%clk 1:33:07]} 8. Nxc6 {[%clk 1:31:30]}  bxc6 {[%clk 1:33:35]} 9. O-O-O {[%clk 1:31:33]}  Be7 {[%clk 1:30:41]}
10. Bxf6 {[%clk 1:29:09]}  gxf6 {[%clk 1:30:00]} 11. Bc4 {[%clk 1:28:15]}  Qa5 {[%clk 1:29:31]} 12. Kb1 {[%clk 1:22:18]}  h5 {[%clk 1:17:15]}
13. Rhe1 {[%clk 1:20:43]}  Rb8 {[%clk 1:15:52]} 14. f4 {[%clk 1:11:56]}  Rg8 {[%clk 1:13:14]} 15. Bb3 {[%clk 1:09:55]}  h4 {[%clk 1:09:34]}
16. f5 {[%clk 1:03:34]}  Qe5 {[%clk 1:06:57]} 17. Qf2 {[%clk 0:57:49]}  c5 {[%clk 0:54:25]} 18. Qxh4 {[%clk 0:56:02]}  c4 {[%clk 0:52:24]}
19. Ba4+ {[%clk 0:55:50]}  Bd7 {[%clk 0:52:15]} 20. Bxd7+ {[%clk 0:53:41]}  Kxd7 {[%clk 0:52:43]} 21. Qh3 {[%clk 0:51:22]}  Rh8 {[%clk 0:46:28]}
22. Qe3 {[%clk 0:50:57]}  Rb7 {[%clk 0:46:09]} 23. Na4 {[%clk 0:43:28]}  Ke8 {[%clk 0:31:18]} 24. h3 {[%clk 0:38:28]}  Qb5 {[%clk 0:30:07]}
25. Qa3 {[%clk 0:23:53]}  d5 {[%clk 0:30:04]} 26. Qf3 {[%clk 0:18:30]}  Qxa4 {[%clk 0:30:02]} 27. exd5 {[%clk 0:18:41]}  Qb5 {[%clk 0:21:28]}
28. b3 {[%clk 0:18:42]}  e5 {[%clk 0:21:18]} 29. d6 {[%clk 0:18:36]}  cxb3 {[%clk 0:18:43]} 30. axb3 {[%clk 0:17:53]}  Bd8 {[%clk 0:18:56]}
31. Rd5 {[%clk 0:15:57]}  Qd7 {[%clk 0:19:00]} 32. Qg4 {[%clk 0:11:45]}  Kf8 {[%clk 0:09:22]} 33. Re3 {[%clk 0:11:36]}  Rg8 {[%clk 0:09:45]}
34. Qh5 {[%clk 0:11:43]}  Qc6 {[%clk 0:04:53]} 35. Red3 {[%clk 0:03:34]}  Rb5 {[%clk 0:03:51]} 36. Rxb5 {[%clk 0:01:03]}  axb5 {[%clk 0:04:14]}
37. Qh6+ {[%clk 0:00:34]}  Ke8 {[%clk 0:04:39]} 38. Qh7 {[%clk 0:00:37]}  Rxg2 {[%clk 0:04:36]} 39. d7+ {[%clk 0:00:34]}  Ke7 {[%clk 0:05:05]}
40. c3 {[%clk 0:00:33]}  Qe4 {[%clk 0:05:21]} 0-1

[Event "2026 European Womens Championship"]
[Site "Batumi, GE"]
[Date "2026.06.02"]
[Round "8"]
[White "Hrebenshchykova, Yelyzaveta"]
[Black "Vidic, Teja"]
[Result "1-0"]
[Board "31"]
[TimeControl "5400+30"]
[WhiteFideId "14159899"]
[BlackFideId "14605511"]
[WhiteElo "2309"]
[BlackElo "2123"]
[WhiteTitle "WGM"]
[BlackTitle "WIM"]
[WhiteClock "0:03:49"]
[BlackClock "0:05:26"]
[Variant "Standard"]

1. e4 {[%clk 1:30:59]}  c5 {[%clk 1:30:49]} 2. Nf3 {[%clk 1:31:25]}  Nc6 {[%clk 1:31:14]} 3. Bb5 {[%clk 1:31:50]}  Nf6 {[%clk 1:31:39]}
4. Nc3 {[%clk 1:30:01]}  Qc7 {[%clk 1:32:03]} 5. O-O {[%clk 1:10:26]}  e5 {[%clk 1:32:21]} 6. d3 {[%clk 1:00:51]}  Be7 {[%clk 1:30:07]}
7. Bxc6 {[%clk 0:57:51]}  dxc6 {[%clk 1:30:30]} 8. a4 {[%clk 0:58:15]}  h6 {[%clk 1:20:15]} 9. a5 {[%clk 0:43:22]}  a6 {[%clk 1:20:40]}
10. Qe1 {[%clk 0:37:01]}  c4 {[%clk 0:58:34]} 11. dxc4 {[%clk 0:32:58]}  Bb4 {[%clk 0:57:43]} 12. Bd2 {[%clk 0:33:04]}  Bg4 {[%clk 0:49:19]}
13. Nh4 {[%clk 0:31:38]}  O-O {[%clk 0:39:14]} 14. Nb1 {[%clk 0:31:55]}  Be7 {[%clk 0:31:19]} 15. Bc3 {[%clk 0:27:06]}  Nxe4 {[%clk 0:27:38]}
16. Qxe4 {[%clk 0:23:24]}  f5 {[%clk 0:28:03]} 17. Qxe5 {[%clk 0:23:48]}  Qxe5 {[%clk 0:28:15]} 18. Bxe5 {[%clk 0:24:15]}  Bxh4 {[%clk 0:28:39]}
19. f3 {[%clk 0:20:08]}  Bh5 {[%clk 0:27:38]} 20. Nc3 {[%clk 0:19:42]}  Rfe8 {[%clk 0:24:15]} 21. Bd4 {[%clk 0:13:49]}  Bf7 {[%clk 0:24:37]}
22. b3 {[%clk 0:13:14]}  Be7 {[%clk 0:24:50]} 23. Na4 {[%clk 0:09:52]}  Rad8 {[%clk 0:21:56]} 24. Rfd1 {[%clk 0:09:47]}  Bb4 {[%clk 0:11:41]}
25. Bc3 {[%clk 0:08:57]}  Bd6 {[%clk 0:11:25]} 26. Rd3 {[%clk 0:07:49]}  Bf4 {[%clk 0:09:53]} 27. g3 {[%clk 0:06:08]}  Be3+ {[%clk 0:09:45]}
28. Kg2 {[%clk 0:04:21]}  f4 {[%clk 0:10:00]} 29. Rad1 {[%clk 0:04:27]}  Rb8 {[%clk 0:09:13]} 30. Rd7 {[%clk 0:03:55]}  h5 {[%clk 0:05:42]}
31. gxf4 {[%clk 0:00:47]}  Bxf4 {[%clk 0:06:04]} 32. Re1 {[%clk 0:01:14]}  Rxe1 {[%clk 0:05:36]} 33. Bxe1 {[%clk 0:01:42]}  Re8 {[%clk 0:06:03]}
34. Bg3 {[%clk 0:02:06]}  Bg5 {[%clk 0:04:11]} 35. h4 {[%clk 0:00:38]}  Bf6 {[%clk 0:04:18]} 36. Rxb7 {[%clk 0:00:46]}  Re2+ {[%clk 0:04:29]}
37. Kf1 {[%clk 0:01:13]}  Rxc2 {[%clk 0:04:47]} 38. Nc5 {[%clk 0:01:42]}  Rc3 {[%clk 0:01:19]} 39. Rb8+ {[%clk 0:00:41]}  Kh7 {[%clk 0:01:44]}
40. Ke2 {[%clk 0:00:36]}  Bg6 {[%clk 0:00:39]} 41. Ne6 {[%clk 0:20:46]}  Bc2 {[%clk 0:25:39]} 42. Nf8+ {[%clk 0:17:23]}  Kg8 {[%clk 0:21:25]}
43. Nd7+ {[%clk 0:15:03]}  Kf7 {[%clk 0:21:44]} 44. Nxf6 {[%clk 0:11:24]}  gxf6 {[%clk 0:21:57]} 45. Kd2 {[%clk 0:11:51]}  Rxf3 {[%clk 0:20:56]}
46. Kxc2 {[%clk 0:12:18]}  Rxg3 {[%clk 0:21:21]} 47. Rb6 {[%clk 0:12:47]}  c5 {[%clk 0:15:25]} 48. Rxa6 {[%clk 0:12:43]}  Rg2+ {[%clk 0:14:42]}
49. Kc3 {[%clk 0:08:42]}  Ra2 {[%clk 0:13:13]} 50. Kd3 {[%clk 0:07:04]}  Ra3 {[%clk 0:11:39]} 51. Kc2 {[%clk 0:06:56]}  Ra2+ {[%clk 0:11:23]}
52. Kb1 {[%clk 0:07:17]}  Rh2 {[%clk 0:11:07]} 53. Rc6 {[%clk 0:07:12]}  Rxh4 {[%clk 0:07:47]} 54. Rxc5 {[%clk 0:07:22]}  Kg6 {[%clk 0:08:10]}
55. a6 {[%clk 0:05:29]}  Re4 {[%clk 0:08:35]} 56. Rc8 {[%clk 0:02:14]}  Re7 {[%clk 0:08:06]} 57. b4 {[%clk 0:04:04]}  Rh7 {[%clk 0:04:50]}
58. b5 {[%clk 0:03:08]}  h4 {[%clk 0:05:15]} 59. b6 {[%clk 0:02:16]}  h3 {[%clk 0:05:40]} 60. Rg8+ {[%clk 0:02:43]}  Kf5 {[%clk 0:06:01]}
61. Rg1 {[%clk 0:03:09]}  h2 {[%clk 0:04:41]} 62. Rh1 {[%clk 0:03:37]}  Kg4 {[%clk 0:05:08]} 63. b7 {[%clk 0:03:24]}  Rh8 {[%clk 0:05:26]}
64. a7 {[%clk 0:03:49]} 1-0

[Event "2026 European Womens Championship"]
[Site "Batumi, GE"]
[Date "2026.06.02"]
[Round "8"]
[White "Arakhamia-Grant, Ketevan"]
[Black "Ismayil, Malak"]
[Result "0-1"]
[Board "32"]
[TimeControl "5400+30"]
[WhiteFideId "13600168"]
[BlackFideId "13412604"]
[WhiteElo "2306"]
[BlackElo "2122"]
[WhiteTitle "GM"]
[BlackTitle "WIM"]
[WhiteClock "0:00:37"]
[BlackClock "0:33:44"]
[Variant "Standard"]

1. e4 {[%clk 1:30:57]}  c6 {[%clk 1:30:47]} 2. d4 {[%clk 1:30:50]}  d5 {[%clk 1:31:13]} 3. Nc3 {[%clk 1:30:35]}  dxe4 {[%clk 1:31:33]}
4. Nxe4 {[%clk 1:30:59]}  Nf6 {[%clk 1:31:58]} 5. Nxf6+ {[%clk 1:30:38]}  exf6 {[%clk 1:32:23]} 6. c3 {[%clk 1:31:30]}  Bd6 {[%clk 1:32:01]}
7. Bd3 {[%clk 1:31:31]}  Na6 {[%clk 1:30:00]} 8. Qc2 {[%clk 1:30:13]}  Nc7 {[%clk 1:26:41]} 9. Ne2 {[%clk 1:30:10]}  Nd5 {[%clk 1:26:12]}
10. Bd2 {[%clk 1:24:51]}  Be6 {[%clk 1:24:44]} 11. O-O {[%clk 0:58:16]}  h6 {[%clk 1:25:02]} 12. c4 {[%clk 0:51:42]}  Ne7 {[%clk 1:12:50]}
13. Rad1 {[%clk 0:37:02]}  O-O {[%clk 1:11:16]} 14. h3 {[%clk 0:37:21]}  Qd7 {[%clk 1:09:58]} 15. Bf4 {[%clk 0:36:07]}  Rfd8 {[%clk 1:01:56]}
16. Rfe1 {[%clk 0:32:21]}  Rac8 {[%clk 1:01:41]} 17. Bxd6 {[%clk 0:24:09]}  Qxd6 {[%clk 1:02:07]} 18. Ng3 {[%clk 0:24:19]}  Kh8 {[%clk 0:50:57]}
19. Bf1 {[%clk 0:22:08]}  f5 {[%clk 0:40:09]} 20. Qd2 {[%clk 0:17:12]}  Rd7 {[%clk 0:38:48]} 21. Nh5 {[%clk 0:16:40]}  Ng6 {[%clk 0:31:50]}
22. Qc3 {[%clk 0:16:58]}  Qf8 {[%clk 0:32:10]} 23. g3 {[%clk 0:17:01]}  b5 {[%clk 0:22:29]} 24. b3 {[%clk 0:17:22]}  bxc4 {[%clk 0:18:02]}
25. bxc4 {[%clk 0:17:46]}  Qg8 {[%clk 0:08:58]} 26. Bg2 {[%clk 0:13:57]}  f4 {[%clk 0:09:09]} 27. gxf4 {[%clk 0:06:07]}  Nh4 {[%clk 0:09:13]}
28. Bf1 {[%clk 0:06:17]}  Rcd8 {[%clk 0:09:12]} 29. Re3 {[%clk 0:04:08]}  Nf5 {[%clk 0:09:18]} 30. Red3 {[%clk 0:04:15]}  f6 {[%clk 0:09:09]}
31. Ng3 {[%clk 0:03:33]}  Nxg3 {[%clk 0:06:36]} 32. Rxg3 {[%clk 0:03:47]}  Qf8 {[%clk 0:07:02]} 33. Qc1 {[%clk 0:00:33]}  Rxd4 {[%clk 0:07:06]}
34. Rxd4 {[%clk 0:00:39]}  Rxd4 {[%clk 0:07:35]} 35. Qe3 {[%clk 0:00:45]}  Qd6 {[%clk 0:08:01]} 36. f5 {[%clk 0:00:51]}  Bf7 {[%clk 0:07:33]}
37. Qb3 {[%clk 0:00:44]}  c5 {[%clk 0:06:30]} 38. Qb7 {[%clk 0:00:57]}  Qd7 {[%clk 0:06:54]} 39. Qa8+ {[%clk 0:00:43]}  Kh7 {[%clk 0:06:33]}
40. Qf8 {[%clk 0:00:38]}  Bxc4 {[%clk 0:06:58]} 41. Bg2 {[%clk 0:23:51]}  Bd5 {[%clk 0:33:18]} 42. Qxc5 {[%clk 0:18:27]}  Bxg2 {[%clk 0:33:27]}
43. Kxg2 {[%clk 0:11:12]}  Rd5 {[%clk 0:33:11]} 44. Qc2 {[%clk 0:10:42]}  Qxf5 {[%clk 0:33:07]} 45. Qxf5+ {[%clk 0:09:48]}  Rxf5 {[%clk 0:33:34]}
46. Rc3 {[%clk 0:04:42]}  Ra5 {[%clk 0:33:05]} 47. a3 {[%clk 0:06:24]}  g5 {[%clk 0:33:03]} 48. Kg3 {[%clk 0:05:17]}  Ra4 {[%clk 0:33:23]}
49. f3 {[%clk 0:02:25]}  Kg6 {[%clk 0:33:46]} 50. Rb3 {[%clk 0:02:11]}  f5 {[%clk 0:33:50]} 51. Rc3 {[%clk 0:02:30]}  Kh5 {[%clk 0:33:59]}
52. Rd3 {[%clk 0:01:27]}  f4+ {[%clk 0:34:23]} 53. Kg2 {[%clk 0:01:08]}  Kh4 {[%clk 0:34:48]} 54. Rd6 {[%clk 0:00:41]}  h5 {[%clk 0:35:14]}
55. Rd3 {[%clk 0:01:07]}  Rc4 {[%clk 0:35:34]} 56. Rd2 {[%clk 0:00:35]}  Rc3 {[%clk 0:35:48]} 57. Ra2 {[%clk 0:00:39]}  a5 {[%clk 0:36:04]}
58. a4 {[%clk 0:00:59]}  Rb3 {[%clk 0:36:20]} 59. Rc2 {[%clk 0:00:36]}  Ra3 {[%clk 0:36:39]} 60. Rc4 {[%clk 0:00:37]}  Ra2+ {[%clk 0:36:42]}
61. Kf1 {[%clk 0:00:37]}  Kxh3 {[%clk 0:33:16]} 62. Rc5 {[%clk 0:00:54]}  Kg3 {[%clk 0:33:43]} 63. Rxg5+ {[%clk 0:00:55]}  Kxf3 {[%clk 0:34:09]}
64. Kg1 {[%clk 0:01:09]}  Rxa4 {[%clk 0:33:39]} 65. Rxh5 {[%clk 0:01:30]}  Ra1+ {[%clk 0:34:05]} 66. Kh2 {[%clk 0:01:56]}  Kf2 {[%clk 0:33:44]}
67. Rb5 {[%clk 0:01:22]}  Ra2 {[%clk 0:33:22]} 68. Rc5 {[%clk 0:00:44]}  f3 {[%clk 0:33:42]} 69. Re5 {[%clk 0:00:35]}  Kf1+ {[%clk 0:33:56]}
70. Kg3 {[%clk 0:00:36]}  f2 {[%clk 0:34:18]} 71. Kh2 {[%clk 0:00:44]}  a4 {[%clk 0:33:59]} 72. Re4 {[%clk 0:00:37]}  a3 {[%clk 0:33:19]}
73. Re3 {[%clk 0:00:37]}  Ra1 {[%clk 0:33:44]} 0-1

[Event "2026 European Womens Championship"]
[Site "Batumi, GE"]
[Date "2026.06.02"]
[Round "8"]
[White "Velikic, Adela"]
[Black "Ivanytska, Liudmyla"]
[Result "0-1"]
[Board "33"]
[TimeControl "5400+30"]
[WhiteFideId "913553"]
[BlackFideId "14176211"]
[WhiteElo "2277"]
[BlackElo "2112"]
[WhiteTitle "WIM"]
[WhiteClock "0:02:15"]
[BlackClock "1:06:47"]
[Variant "Standard"]

1. e4 {[%clk 1:30:54]}  c5 {[%clk 1:30:58]} 2. Nf3 {[%clk 1:31:17]}  e6 {[%clk 1:31:27]} 3. d4 {[%clk 1:31:40]}  cxd4 {[%clk 1:31:55]}
4. Nxd4 {[%clk 1:32:04]}  Nc6 {[%clk 1:32:22]} 5. Nc3 {[%clk 1:32:24]}  Qc7 {[%clk 1:32:48]} 6. Be3 {[%clk 1:32:46]}  a6 {[%clk 1:33:07]}
7. Qf3 {[%clk 1:32:59]}  Nf6 {[%clk 1:32:27]} 8. O-O-O {[%clk 1:33:10]}  Ne5 {[%clk 1:32:47]} 9. Qg3 {[%clk 1:33:24]}  b5 {[%clk 1:33:12]}
10. f4 {[%clk 1:29:20]}  Neg4 {[%clk 1:33:40]} 11. Bg1 {[%clk 1:29:21]}  b4 {[%clk 1:34:09]} 12. Na4 {[%clk 1:29:30]}  h5 {[%clk 1:34:34]}
13. e5 {[%clk 1:28:21]}  Nd5 {[%clk 1:29:31]} 14. h3 {[%clk 1:27:08]}  Nh6 {[%clk 1:29:33]} 15. f5 {[%clk 1:26:25]}  Bb7 {[%clk 1:28:07]}
16. Kb1 {[%clk 0:48:58]}  h4 {[%clk 1:23:02]} 17. Qe1 {[%clk 0:49:07]}  Qa5 {[%clk 1:19:55]} 18. b3 {[%clk 0:41:44]}  Nc3+ {[%clk 1:19:06]}
19. Nxc3 {[%clk 0:41:18]}  bxc3 {[%clk 1:19:34]} 20. Bd3 {[%clk 0:27:01]}  Rc8 {[%clk 1:17:14]} 21. a4 {[%clk 0:17:00]}  Ba3 {[%clk 1:14:06]}
22. fxe6 {[%clk 0:08:50]}  dxe6 {[%clk 1:10:24]} 23. Qxh4 {[%clk 0:04:10]}  Bd5 {[%clk 1:07:59]} 24. Be3 {[%clk 0:00:56]}  Bb2 {[%clk 1:05:31]}
25. Bc1 {[%clk 0:00:35]}  Bxc1 {[%clk 1:05:28]} 26. Rxc1 {[%clk 0:00:33]}  Qb4 {[%clk 1:05:15]} 27. Nf5 {[%clk 0:00:33]}  Qa3 {[%clk 1:05:33]}
28. Qe7+ {[%clk 0:00:32]}  Qxe7 {[%clk 1:06:00]} 29. Nxe7 {[%clk 0:01:00]}  Kxe7 {[%clk 1:06:25]} 30. Bxa6 {[%clk 0:00:43]}  Ra8 {[%clk 1:06:46]}
31. Bb5 {[%clk 0:01:42]}  Nf5 {[%clk 1:07:04]} 32. Rhg1 {[%clk 0:02:05]}  Nd4 {[%clk 1:06:19]} 33. Rcd1 {[%clk 0:01:49]}  Nxb5 {[%clk 1:06:26]}
34. axb5 {[%clk 0:02:15]}  Ra3 {[%clk 1:06:47]} 0-1

[Event "2026 European Womens Championship"]
[Site "Batumi, GE"]
[Date "2026.06.02"]
[Round "8"]
[White "Calzetta Ruiz, Monica"]
[Black "Mirzoeva, Elmira"]
[Result "1/2-1/2"]
[Board "34"]
[TimeControl "5400+30"]
[WhiteFideId "2204185"]
[BlackFideId "4127951"]
[WhiteElo "2199"]
[BlackElo "2265"]
[WhiteTitle "WGM"]
[BlackTitle "WGM"]
[WhiteClock "0:02:11"]
[BlackClock "0:01:01"]
[Variant "Standard"]

1. e4 {[%clk 1:30:57]}  d5 {[%clk 1:30:51]} 2. exd5 {[%clk 1:31:21]}  Qxd5 {[%clk 1:31:12]} 3. Nc3 {[%clk 1:30:21]}  Qd6 {[%clk 1:31:25]}
4. d4 {[%clk 1:30:21]}  Nf6 {[%clk 1:31:22]} 5. Nf3 {[%clk 1:30:22]}  g6 {[%clk 1:31:24]} 6. Ne5 {[%clk 1:18:07]}  Bg7 {[%clk 1:29:02]}
7. Bc4 {[%clk 1:05:01]}  O-O {[%clk 1:28:03]} 8. O-O {[%clk 1:03:06]}  a6 {[%clk 1:19:11]} 9. Bf4 {[%clk 1:01:17]}  Qd8 {[%clk 1:15:24]}
10. Qf3 {[%clk 0:58:17]}  Nbd7 {[%clk 1:10:18]} 11. Rad1 {[%clk 0:54:24]}  Nb6 {[%clk 1:06:20]} 12. Bb3 {[%clk 0:54:42]}  c6 {[%clk 1:03:38]}
13. Ne4 {[%clk 0:48:47]}  Nbd5 {[%clk 1:00:46]} 14. Bc1 {[%clk 0:29:58]}  Nxe4 {[%clk 0:58:31]} 15. Qxe4 {[%clk 0:30:26]}  Bf5 {[%clk 0:54:40]}
16. Qf3 {[%clk 0:29:15]}  a5 {[%clk 0:45:40]} 17. a4 {[%clk 0:28:29]}  f6 {[%clk 0:33:24]} 18. Nd3 {[%clk 0:26:10]}  Kh8 {[%clk 0:30:11]}
19. Rfe1 {[%clk 0:25:20]}  e5 {[%clk 0:21:18]} 20. dxe5 {[%clk 0:17:36]}  fxe5 {[%clk 0:21:39]} 21. Qg3 {[%clk 0:18:02]}  Bxd3 {[%clk 0:10:31]}
22. Rxd3 {[%clk 0:18:05]}  Qb6 {[%clk 0:10:49]} 23. Bxd5 {[%clk 0:17:06]}  cxd5 {[%clk 0:11:17]} 24. Rxd5 {[%clk 0:17:22]}  Qb4 {[%clk 0:10:30]}
25. Bd2 {[%clk 0:11:32]}  Qxa4 {[%clk 0:10:47]} 26. Rdxe5 {[%clk 0:09:26]}  Qxc2 {[%clk 0:10:28]} 27. Bc3 {[%clk 0:09:24]}  Rac8 {[%clk 0:05:52]}
28. Re7 {[%clk 0:06:39]}  Bxc3 {[%clk 0:05:35]} 29. bxc3 {[%clk 0:06:19]}  Qxc3 {[%clk 0:04:22]} 30. Rxh7+ {[%clk 0:05:02]}  Kxh7 {[%clk 0:04:48]}
31. Re7+ {[%clk 0:05:26]}  Qg7 {[%clk 0:05:05]} 32. Qh3+ {[%clk 0:04:39]}  Kg8 {[%clk 0:05:31]} 33. Rxg7+ {[%clk 0:03:43]}  Kxg7 {[%clk 0:06:00]}
34. Qd7+ {[%clk 0:04:05]}  Kg8 {[%clk 0:03:34]} 35. Qe6+ {[%clk 0:03:15]}  Kh8 {[%clk 0:03:26]} 36. Qh3+ {[%clk 0:03:36]}  Kg7 {[%clk 0:03:50]}
37. Qd7+ {[%clk 0:03:57]}  Kh6 {[%clk 0:01:01]} 38. Qd2+ {[%clk 0:04:14]}  Kg7 {[%clk 0:00:52]} 39. Qd7+ {[%clk 0:01:47]}  Kg8 {[%clk 0:00:58]}
40. Qe6+ {[%clk 0:02:11]}  Kg7 {[%clk 0:01:01]} 1/2-1/2